Cogmind - Beta 13 @@@ ROGUE MODE // 2024.04.01 @ 19:42:25 Player: Bean Result: Destroyed by G-34 Mercenary with Small Laser Performance ------------- Evolutions (0) 0 Regions Visited (1) 200 Robots Destroyed (11) 55 Value Destroyed (305) 305 Prototype IDs (0) 0 Alien Tech Used (0) 0 Bonus (0) 0 TOTAL SCORE: 560 Bonus ------- None Cogmind --------- Core Integrity 0/250 Matter 269/300 Energy 250/250 System Corruption 0% Temperature Cool (6) Movement Walking (120) Location -10/Materials Parts ------- > --- POWER (1) -------- Ion Engine > --- PROPULSION (2) --- Aluminum Leg Aluminum Leg > --- UTILITY (2) ------ Heat Sink Small Storage Unit > --- WEAPON (2) ------- Small Laser Small Laser > --- INVENTORY (8) ---- (None) Peak State ------------ > --- POWER ------------ Ion Engine > --- PROPULSION ------- Light Treads Light Treads > --- UTILITY ---------- Small Storage Unit Small Storage Unit > --- WEAPON ----------- Medium Laser Small Laser > --- INVENTORY -------- (None) [Rating: 7] Favorites ----------- Power Ion Engine Engine Ion Engine Propulsion Light Treads Treads Light Treads Leg Aluminum Leg Utility Small Storage Unit Device Seismic Detector Storage Small Storage Unit Weapon Mining Laser Energy Gun Small Laser Special Weapon Mining Laser Build | -11 -10 ------- Run | Yrd Mat Slots Evolved . | . . Power . | . . Propulsion . | . . Utility . | . . Weapon . | . . Parts Attached 18 | 10 8 Power 2 | 1 1 Engine 2 | 1 1 Core . | . . Reactor . | . . Propulsion 4 | 2 2 Treads 2 | 2 . Leg 2 | . 2 Wheel . | . . Hover . | . . Flight . | . . Utility 4 | 3 1 Device 2 | 1 1 Storage 2 | 2 . Processor . | . . Hackware . | . . Protection . | . . Artifact . | . . Weapon 8 | 4 4 Energy Gun 5 | 2 3 Energy Cannon . | . . Ballistic Gun . | . . Ballistic Cannon . | . . Launcher . | . . Special Weapon 2 | 2 . Impact Weapon . | . . Slashing Weapon . | . . Piercing Weapon . | . . Special Melee Weapon 1 | . 1 Unidentified Prototypes . | . . Parts Lost 6 | . 6 Power 1 | . 1 Propulsion 2 | . 2 Utility . | . . Weapon 3 | . 3 Highest Loss Streak 4 | . 4 To Critical Strikes . | . . Average Slot Usage (%) 83 | . 83 Engine 8 | . 8 Treads 18 | . 18 Leg 4 | . 4 Device 14 | . 14 Storage 14 | . 14 Energy Gun 7 | . 7 Special Weapon 14 | . 14 Naked Turns . | . . Heaviest Build 14 | 14 13 Greatest Support 40 | 40 40 Greatest Overweight (x) 2 | . 2 Average Overweight (x) . | . . Largest Inventory Capacity 8 | 8 8 Average Capacity 7 | 7 8 Most Carried 4 | 4 3 Average Carried . | . . Final Capacity 8 | 8 8 Final Carried . | . . Class Distribution -------------------- 80% | Scavenger-Mutant 19% | Mutant Dominant Class ---------------- Scavenger-Mutant | -10/Materials Resources | -11 -10 ----------- Run | Yrd Mat Matter Collected 319 | 256 63 Remotely . | . . Salvage Created 310 | 121 189 Parts 14 | 6 8 Haulers Intercepted . | . . Recyclers Shooed . | . . Parts Field Recycled . | . . Retrieved Matter . | . . Parts Self-Destructed . | . . Prevented . | . . Kills | -11 -10 ------- Run | Yrd Mat Combat Hostiles Destroyed 7 | . 7 Guns 5 | . 5 Cannons 2 | . 2 Classes Destroyed 3 | 2 1 Tunneler 3 | 3 . Recycler 1 | 1 . Grunt 7 | . 7 Best Kill Streak 3 | 2 3 Combat Bots Only 3 | . 3 Max Kills in Single Turn 1 | 1 1 Gunslinging . | . . Exploded . | . . Melee . | . . Uniques/NPCs Destroyed . | . . Combat | -11 -10 -------- Run | Yrd Mat Hostile Shots Fired 110 | . 110 Missed 32 | . 32 Damage Taken 850 | . 850 Core 250 | . 250 Absorbed by Shields . | . . Core Remaining (%) 100 | 100 . Volleys Fired 61 | 19 42 Largest 2 | 2 2 Hottest 200 | 200 200 Shots Fired 103 | 35 68 Gun 53 | 23 30 Cannon . | . . Launcher . | . . Special 50 | 12 38 Kinetic . | . . Thermal 103 | 35 68 Explosive . | . . Electromagnetic . | . . Robot Hit Streak 13 | 5 13 Robot Miss Streak 4 | 3 4 Penetration Max . | . . Secondary Targets . | . . Shots Hit Robots 46 | 14 32 Core Hits 18 | 5 13 Critical Kills . | . . Critical Parts Destroyed . | . . Critical Strikes . | . . Melee Attacks . | . . Impact . | . . Slashing . | . . Piercing . | . . Sneak Attacks . | . . Combat Hostiles . | . . Follow-up Attacks . | . . Damage Inflicted 657 | 194 463 Guns 441 | 146 295 Cannons . | . . Explosions . | . . Melee . | . . Ramming . | . . Kinetic . | . . Thermal 657 | 194 463 Explosive . | . . Electromagnetic . | . . Impact . | . . Slashing . | . . Piercing . | . . Highest Corruption . | . . Average Corruption . | . . Corruption Purged . | . . Corruption Blocked . | . . Overload Shots . | . . Overflow Damage . | . . Projectiles . | . . Explosions . | . . Melee . | . . Knockbacks . | . . Impact . | . . Kinetic . | . . Secondary . | . . Self-Inflicted Damage . | . . Shots . | . . Rammed . | . . Targets Rammed . | . . Kicked . | . . Crushed . | . . Highest Temperature 272 | 110 272 Average Temperature 75 | 38 93 Received Heat Transfer 468 | . 468 Siege Activations . | . . Robots Corrupted . | . . Combat Hostiles . | . . Parts Fried . | . . Impact Corruptions . | . . Robots Melted . | . . Combat Hostiles . | . . Parts Melted . | . . Heat Transferred 1639 | 508 1131 Parts Sabotaged . | . . Parts Stolen . | . . Parts Stripped . | . . Power Chain Reactions . | . . Alert | -11 -10 ------- Run | Yrd Mat Peak Influence 172 | 20 172 Initial 13 | . 13 Average 62 | 12 85 Maximum Alert Level . | . . Low Security (%) 100 | 100 100 Level 1 . | . . Level 2 . | . . Level 3 . | . . Level 4 . | . . Level 5 . | . . High Security . | . . Max Security . | . . Squads Dispatched 5 | . 5 Investigation 4 | . 4 Extermination . | . . Reinforcement 1 | . 1 Assault . | . . Garrison . | . . Intercept . | . . Searches Triggered . | . . Construction Impeded . | . . Haulers Reinforced . | . . Active Scanning Responses . | . . Cargo Convoy Interrupts . | . . Stealth | -11 -10 --------- Run | Yrd Mat Distress Signals 1 | . 1 Communications Jammed . | . . Distress Signals . | . . Times Spotted 9 | . 9 Peak Tracking Total 3 | . 3 Tactical Retreats 1 | . 1 Traps | -11 -10 ------- Run | Yrd Mat Traps Triggered 1 | . 1 Indirectly . | . . Trap Hack Attempts . | . . Triggered . | . . Disarmed . | . . Reprogrammed . | . . Reused . | . . Traps Extracted . | . . Installed . | . . Triggered . | . . Machines | -11 -10 ---------- Run | Yrd Mat Machines Disabled 4 | . 4 Max in Single Turn 1 | . 1 Machines Repaired . | . . Machines Dismantled . | . . Machines Sabotaged . | . . Overloaded Fab Kills . | . . Hacking | -11 -10 --------- Run | Yrd Mat Machines Accessed 2 | . 2 Terminals 2 | . 2 Fabricators . | . . Repair Stations . | . . Recycling Units . | . . Scanalyzers . | . . Garrison Access . | . . Total Hacks 6 | . 6 Successful . | . . Failed 6 | . 6 Catastrophic 3 | . 3 Database Lockouts . | . . Manual 1 | . 1 Terminals 6 | . 6 Fabricators . | . . Repair Stations . | . . Recycling Units . | . . Scanalyzers . | . . Garrison Access . | . . Terminal Hacks . | . . Fabricator Hacks . | . . Repair Station Hacks . | . . Recycling Unit Hacks . | . . Scanalyzer . | . . Garrison Access Hacks . | . . Unauthorized Hacks . | . . Terminals . | . . Fabricators . | . . Repair Stations . | . . Recycling Units . | . . Scanalyzers . | . . Garrison Access . | . . Data Cores Recovered . | . . Used . | . . Hacking Detections 2 | . 2 Full Trace Events 2 | . 2 Feedback Events . | . . Feedback Blocked . | . . Robot Schematics Acquired . | . . Robots Built . | . . Authchips . | . . Time . | . . Total Robot Build Rating . | . . Part Schematics Acquired . | . . Parts Built . | . . Authchips . | . . Time . | . . Total Part Build Rating . | . . Parts Repaired . | . . Time . | . . Parts Recycled . | . . Recycled Matter . | . . Retrieved Matter . | . . Retrieved Components . | . . Parts Scanalyzed . | . . Part Schematics Acquired . | . . Parts Damaged . | . . Bothacking | -11 -10 ------------ Run | Yrd Mat Used RIF Installer . | . . Robots Hacked . | . . Non-combat . | . . Combat . | . . Robot Hacks Applied . | . . Relay Couplers Released . | . . Fabnet Peak Effective % . | . . Robots Rewired . | . . Allies Hacked . | . . Hacks Repelled . | . . Allies | -11 -10 -------- Run | Yrd Mat Total Allies . | . . Largest Group . | . . Highest-Rated Group . | . . Highest-Rated Ally . | . . Total Orders . | . . Ally Attacks . | . . Total Damage . | . . Kills . | . . Allies Corrupted . | . . Allies Melted . | . . Intel | -11 -10 ------- Run | Yrd Mat Robot Analysis Total . | . . Derelict Logs Recovered . | . . Drone Launches . | . . Drone Recoveries . | . . Exploration | -11 -10 ------------- Run | Yrd Mat Turns Passed 687 | 214 473 Spaces Moved 264 | 79 185 Core 23 | 10 13 Treads 181 | 69 112 Legs 60 | . 60 Wheels . | . . Hover . | . . Flight . | . . Fastest Speed 50 | 50 120 Average Speed 146 | 146 146 Slowest Speed 160 | 160 160 Overloaded Moves . | . . Propulsion Burnouts . | . . Robots Hopped . | . . Cave-ins Triggered . | . . Exploration Rate (%) 11 | 4 19 Regions Visited 1 Branch Regions . Pre-discovered Areas . | . . Known Exits Taken . | . . Unknown Exits Taken 1 | 1 . Scrap Searched . | . . Spaces Dug 10 | 4 6 Terrain Destroyed 16 | 5 11 Melee . | . . Projectile 16 | 5 11 AOE . | . . Terrain Rammed . | . . Walls Destroyed . | . . Machines Disabled . | . . Actions | -11 -10 --------- Run | Yrd Mat Total 366 | 121 245 Wait . | . . Move 263 | 78 185 Hop . | . . Pick Up 18 | 10 8 Fast Attach . | . . Attach 18 | 10 8 Detach 1 | 1 . Swap . | . . Drop 5 | 3 2 Fire 61 | 19 42 Melee . | . . Ram . | . . Kick . | . . Crush . | . . Escape Stasis . | . . Rewire . | . . Trap . | . . Miscellaneous . | . . Route ------- -11/Scrapyard -10/Materials (discovered 1 exit: [*Mat]) History --------- Turn | Location | Event 5 | -11/Scrapyard | Discovered new exit (range 16) 215 | -11/Scrapyard | Entered Materials 311 | -10/Materials | Build established: Scavenger-Mutant 499 | -10/Materials | Lost 4 parts (1p3w) 531 | -10/Materials | Core integrity fell below 50% 549 | -10/Materials | Core integrity fell below 20% 662 | -10/Materials | Discovered new exit (range 10) 688 | -10/Materials | Destroyed by G-34 Mercenary with Small Laser Last Messages --------------- Acquired Med. Laser. Lgt. Treads destroyed. G-34 Mercenary destroyed. Acquired 13 matter. Acquired Sml. Laser. Acquired Aluminum Leg. Acquired Sml. Laser. Dropped Med. Laser. Acquired 29 matter. Acquired Heat Sink. Acquired Aluminum Leg. Acquired Ion Engine. Dropped Seismic Detector. EXIT=FOUND Triggered Alarm Trap. An alarm sounds. ALERT: Alarm triggered, dispatching investigation squad. U-05 Engineer lays Concrete. G-34 Mercenary destroyed. Map ----- +----------------------------------------------------+ | ?????????????????# # # " #?? | | ?????????????????# + + "" #?? | | ?????????????????#" # # #?? | | ?????????????????#T ??# # #?? | | ?????????????????#" ????# ########## | | ?????????????????#??????# # ! # | | ??????????????????#+#???# # """ # | | ??????????????????# #???# # """ # | | ?????????????????## ##### # """ # | | ?????????????????# # # | | ?????????????????# / # | | ?????????????????# # # | | ??????????????#####+##### # # | | ??????????????# # # # | | ??????????????# # ########## | | ??????????????# # ### #???? | | ??????????????# """ [%# #?####???? | | ??????????????# """"" # #????????? | | ??????????????# """"" # #????????? | | ??????????????# """"" # ###????????? | | ??????????????# """ # #??????????? | | ??????????????########### #??????????? | | ????????????????????????# #??????????? | | ????????????????????????# #??????????? | | ????????????????????????# #??????????? | | ????????????????????????#@#??????????? | | ????????????????????????#g#??????????? | | ????????????????????????#k#??????????? | | ????????????????????????# #??????????? | | ????????????????????????# #??????????? | | ????????????????????????# #??????????? | | ???????????????????????? #??????????? | | ????????????????????????< #??????????? | | ???????????????????????? #??????????? | | ????????????????????????##???????????? | | ?????????????????????????????????????? | | ?????????????????????????????????????? | | ?????????????????????????????????????? | | ?????????????????????????????????????? | | ?????????????????????????????????????? | | ?????????????????????????????????????? | | | | | | | | | | | | | | | | | | | +----------------------------------------------------+ Best States ------------- Heat Dissipation 35 Energy Generation 10 Energy Capacity 250 Matter Stores 300 Matter Capacity 300 Sight Range 16 Terrain Scan Density 10 Evasion (%) 55 Recoil Reduction 2 Item Schematics ----------------- None Robot Schematics ------------------ None Fabricated ------------ Nothing Alien Tech Used ----------------- None Achievements -------------- None Challenges ------------ None Game ------ Seed ShadingDeuteriumHammer Manual? 0 Play Time 00:09:06 Cumulative 2.8 hours Start 2024.04.01 @ 19:36:23 End 2024.04.01 @ 19:42:25 Sessions 1 Manual Loads 0 Difficulty Rogue Special Mode None Game No. 6 Rogue 6 Adventurer 0 Explorer 0 Win Type - Total 0 Types 0/0/0/0/0/0/0/0/0 Lore% 4 Gallery% 9 Achievement% 8 Wizard Run 0 Options --------- Layout 2 ASCII 0 Keyboard 0 Movement Numpad Keybinds 0 Fullscreen 1 Font 24/Smallcaps Map View 50x44 Zoom Use 0% Tactical HUD 0 Map Filters NONE Filters NONE Steam 1 RUN: ac459d10-7567-4818-920d-92a3b1e3a32a